[Event "Early-Titled-Tuesday-Blitz-March-05-2024"]
[Site "Chess.com"]
[Date "2024.03.05"]
[Round "4"]
[White "SpeedofLight0"]
[Black "sokidze"]
[Result "0-1"]
[WhiteElo "3061"]
[BlackElo "2792"]
[TimeControl "180+1"]
[EndTime "8:43:59 PST"]
[Termination "sokidze won by checkmate"]

1. d4 {[%clk 0:02:59.8]} 1... d5 {[%clk 0:03:00.5]} 2. Nc3 {[%clk 0:03:00]} 2...
Nf6 {[%clk 0:03:00.1]} 3. Bf4 {[%clk 0:03:00.8]} 3... e6 {[%clk 0:03:00.7]} 4.
e3 {[%clk 0:03:00.4]} 4... Bb4 {[%clk 0:03:00.4]} 5. Bd3 {[%clk 0:03:00.9]} 5...
c5 {[%clk 0:02:52.9]} 6. dxc5 {[%clk 0:03:01.8]} 6... Nc6 {[%clk 0:02:45.4]} 7.
Nf3 {[%clk 0:03:01.1]} 7... Qa5 {[%clk 0:02:37.1]} 8. O-O {[%clk 0:02:56.7]}
8... Bxc3 {[%clk 0:02:37.1]} 9. bxc3 {[%clk 0:02:57.5]} 9... Qxc5 {[%clk
0:02:37.1]} 10. Ne5 {[%clk 0:02:16.9]} 10... O-O {[%clk 0:02:03.2]} 11. c4
{[%clk 0:02:15.8]} 11... dxc4 {[%clk 0:01:30.7]} 12. Nxc4 {[%clk 0:02:09.2]}
12... e5 {[%clk 0:01:30.5]} 13. Bg3 {[%clk 0:02:08.7]} 13... Be6 {[%clk
0:01:20.6]} 14. Nd2 {[%clk 0:02:04.9]} 14... Nd5 {[%clk 0:01:14.3]} 15. Ne4
{[%clk 0:01:40.8]} 15... Qe7 {[%clk 0:01:11.3]} 16. Qh5 {[%clk 0:01:39.9]} 16...
h6 {[%clk 0:00:47.4]} 17. Bh4 {[%clk 0:01:19.4]} 17... f6 {[%clk 0:00:39.7]} 18.
Qg6 {[%clk 0:01:15.5]} 18... Bf7 {[%clk 0:00:31.7]} 19. Qf5 {[%clk 0:00:55.8]}
19... Be6 {[%clk 0:00:28.7]} 20. Qf3 {[%clk 0:00:46.8]} 20... g5 {[%clk
0:00:27.8]} 21. Bg3 {[%clk 0:00:41.2]} 21... f5 {[%clk 0:00:27.8]} 22. Qh5
{[%clk 0:00:34.9]} 22... fxe4 {[%clk 0:00:24.8]} 23. Qg6+ {[%clk 0:00:34.7]}
23... Kh8 {[%clk 0:00:22]} 24. Qxh6+ {[%clk 0:00:33.6]} 24... Kg8 {[%clk
0:00:22.2]} 25. Qg6+ {[%clk 0:00:29.6]} 25... Kh8 {[%clk 0:00:22.6]} 26. Qh6+
{[%clk 0:00:26.1]} 26... Kg8 {[%clk 0:00:23]} 27. Bxe4 {[%clk 0:00:26.7]} 27...
Rf6 {[%clk 0:00:12.4]} 28. Qxg5+ {[%clk 0:00:26.2]} 28... Qg7 {[%clk 0:00:12]}
29. Qh5 {[%clk 0:00:22.1]} 29... Rh6 {[%clk 0:00:10.5]} 30. Qe2 {[%clk
0:00:19.6]} 30... Nc3 {[%clk 0:00:10.2]} 31. Qd3 {[%clk 0:00:19.5]} 31... Nxe4
{[%clk 0:00:10.6]} 32. Qxe4 {[%clk 0:00:20.3]} 32... Rf8 {[%clk 0:00:10.5]} 33.
Rad1 {[%clk 0:00:19.3]} 33... Bf5 {[%clk 0:00:09.8]} 34. Qc4+ {[%clk 0:00:19.1]}
34... Kh8 {[%clk 0:00:09.7]} 35. Rd2 {[%clk 0:00:18]} 35... Rhf6 {[%clk
0:00:09.5]} 36. Rfd1 {[%clk 0:00:17.3]} 36... Qg6 {[%clk 0:00:09.7]} 37. Qc5
{[%clk 0:00:14.9]} 37... Kh7 {[%clk 0:00:08.5]} 38. Rd6 {[%clk 0:00:14]} 38...
Rxd6 {[%clk 0:00:08.2]} 39. Rxd6 {[%clk 0:00:14.9]} 39... Rf6 {[%clk 0:00:08.8]}
40. Rd2 {[%clk 0:00:14.2]} 40... Qe8 {[%clk 0:00:07.7]} 41. h3 {[%clk
0:00:13.6]} 41... Rf7 {[%clk 0:00:07.9]} 42. Qc4 {[%clk 0:00:12.9]} 42... Rd7
{[%clk 0:00:05.1]} 43. Qh4+ {[%clk 0:00:13]} 43... Kg7 {[%clk 0:00:05.4]} 44.
Qg5+ {[%clk 0:00:08.9]} 44... Bg6 {[%clk 0:00:05.6]} 45. Re2 {[%clk 0:00:05.4]}
45... Qe7 {[%clk 0:00:05.7]} 46. Qg4 {[%clk 0:00:05.8]} 46... Rd1+ {[%clk
0:00:06.2]} 47. Kh2 {[%clk 0:00:06.7]} 47... Rd6 {[%clk 0:00:04.5]} 48. h4
{[%clk 0:00:06.8]} 48... Qe6 {[%clk 0:00:04]} 49. Qg5 {[%clk 0:00:06.6]} 49...
Qf6 {[%clk 0:00:04.6]} 50. Qg4 {[%clk 0:00:06.8]} 50... Qf5 {[%clk 0:00:05.2]}
51. Qc4 {[%clk 0:00:06.2]} 51... Qe4 {[%clk 0:00:03.7]} 52. Qc5 {[%clk 0:00:06]}
52... Qd5 {[%clk 0:00:04.1]} 53. Qc3 {[%clk 0:00:05.9]} 53... Kh7 {[%clk
0:00:02.8]} 54. f3 {[%clk 0:00:06.1]} 54... Rd7 {[%clk 0:00:02.9]} 55. e4 {[%clk
0:00:06.2]} 55... Qd4 {[%clk 0:00:03.2]} 56. Qb3 {[%clk 0:00:06.5]} 56... Bf7
{[%clk 0:00:03.6]} 57. Qb1 {[%clk 0:00:06.2]} 57... Bc4 {[%clk 0:00:04.2]} 58.
Rf2 {[%clk 0:00:05.2]} 58... Qd1 {[%clk 0:00:03.8]} 59. Qb2 {[%clk 0:00:04.8]}
59... Qd4 {[%clk 0:00:04.5]} 60. Qa3 {[%clk 0:00:05.2]} 60... Qd6 {[%clk
0:00:03.8]} 61. Qc1 {[%clk 0:00:05.4]} 61... b5 {[%clk 0:00:04]} 62. Qg5 {[%clk
0:00:05.8]} 62... Qg6 {[%clk 0:00:04.7]} 63. Qe3 {[%clk 0:00:05.7]} 63... Rg7
{[%clk 0:00:05.3]} 64. f4 {[%clk 0:00:04.9]} 64... exf4 {[%clk 0:00:04.6]} 65.
Qxf4 {[%clk 0:00:05.5]} 65... Rf7 {[%clk 0:00:04.8]} 66. Qe3 {[%clk 0:00:05.8]}
66... Rxf2 {[%clk 0:00:05.3]} 67. Qxf2 {[%clk 0:00:06.7]} 67... Qf7 {[%clk
0:00:05.5]} 68. Qe3 {[%clk 0:00:06.5]} 68... Bxa2 {[%clk 0:00:05.9]} 69. e5
{[%clk 0:00:06.9]} 69... Be6 {[%clk 0:00:06]} 70. Qd3+ {[%clk 0:00:07.1]} 70...
Bf5 {[%clk 0:00:04.1]} 71. Qxb5 {[%clk 0:00:07.9]} 71... Qe6 {[%clk 0:00:03.8]}
72. Qb7+ {[%clk 0:00:07.7]} 72... Kg6 {[%clk 0:00:04.1]} 73. Bf4 {[%clk
0:00:07.5]} 73... Nxe5 {[%clk 0:00:04]} 74. Qxa7 {[%clk 0:00:07.5]} 74... Ng4+
{[%clk 0:00:04.3]} 75. Kg3 {[%clk 0:00:07.6]} 75... Qe1+ {[%clk 0:00:04.6]} 76.
Kf3 {[%clk 0:00:07.3]} 76... Qe4+ {[%clk 0:00:05.3]} 77. Kg3 {[%clk 0:00:07.4]}
77... Qe1+ {[%clk 0:00:06.1]} 78. Kf3 {[%clk 0:00:07.8]} 78... Be4+ {[%clk
0:00:04.9]} 79. Kxg4 {[%clk 0:00:07.6]} 79... Qe2+ {[%clk 0:00:05.6]} 80. Kh3
{[%clk 0:00:05.9]} 80... Qxg2# {[%clk 0:00:06.5]} 0-1

[Event "Early-Titled-Tuesday-Blitz-March-05-2024"]
[Site "Chess.com"]
[Date "2024.03.05"]
[Round "4"]
[White "Agibileg"]
[Black "corvachesky"]
[Result "1/2-1/2"]
[WhiteElo "2647"]
[BlackElo "2444"]
[TimeControl "180+1"]
[EndTime "8:44:01 PST"]
[Termination "Game drawn - insufficient material"]

1. d4 {[%clk 0:03:00.9]} 1... Nf6 {[%clk 0:02:45.1]} 2. c4 {[%clk 0:03:01.8]}
2... e6 {[%clk 0:02:43.6]} 3. Nc3 {[%clk 0:03:02.7]} 3... d5 {[%clk 0:02:43.4]}
4. cxd5 {[%clk 0:03:02.3]} 4... exd5 {[%clk 0:02:43.9]} 5. Bg5 {[%clk
0:03:02.7]} 5... Be7 {[%clk 0:02:43.5]} 6. e3 {[%clk 0:03:01.9]} 6... c6 {[%clk
0:02:44]} 7. Bd3 {[%clk 0:03:02.1]} 7... Nbd7 {[%clk 0:02:43.8]} 8. Nge2 {[%clk
0:02:59]} 8... h6 {[%clk 0:02:44.2]} 9. Bf4 {[%clk 0:02:58.1]} 9... Nh5 {[%clk
0:02:44.5]} 10. Be5 {[%clk 0:02:58]} 10... Nxe5 {[%clk 0:02:43.3]} 11. dxe5
{[%clk 0:02:55.8]} 11... g5 {[%clk 0:02:37.4]} 12. O-O {[%clk 0:02:44.7]} 12...
Ng7 {[%clk 0:02:35.5]} 13. f4 {[%clk 0:02:44.5]} 13... g4 {[%clk 0:02:26.6]} 14.
f5 {[%clk 0:02:34.6]} 14... Bg5 {[%clk 0:02:23.2]} 15. Nf4 {[%clk 0:02:32.2]}
15... Qc7 {[%clk 0:02:20.8]} 16. e6 {[%clk 0:02:26.3]} 16... fxe6 {[%clk
0:02:19.4]} 17. fxe6 {[%clk 0:02:23]} 17... Nxe6 {[%clk 0:02:01.5]} 18. Bg6+
{[%clk 0:02:22.4]} 18... Kd8 {[%clk 0:02:01.6]} 19. Ncxd5 {[%clk 0:02:19.9]}
19... cxd5 {[%clk 0:01:55.5]} 20. Qxd5+ {[%clk 0:02:19.2]} 20... Ke7 {[%clk
0:01:52.4]} 21. Qe4 {[%clk 0:02:02.7]} 21... Bxf4 {[%clk 0:01:42.9]} 22. Rxf4
{[%clk 0:02:02.8]} 22... Rf8 {[%clk 0:01:39.7]} 23. Rxf8 {[%clk 0:01:53.3]}
23... Kxf8 {[%clk 0:01:38.9]} 24. Rf1+ {[%clk 0:01:53.8]} 24... Kg7 {[%clk
0:01:29.4]} 25. Rf7+ {[%clk 0:01:51.4]} 25... Qxf7 {[%clk 0:01:29.3]} 26. Bxf7
{[%clk 0:01:52.3]} 26... Kxf7 {[%clk 0:01:29.9]} 27. Qh7+ {[%clk 0:01:47.7]}
27... Ng7 {[%clk 0:01:27.5]} 28. Qxh6 {[%clk 0:01:47.3]} 28... Bf5 {[%clk
0:01:19.9]} 29. Qf4 {[%clk 0:01:42.4]} 29... Re8 {[%clk 0:01:18.2]} 30. Qc4+
{[%clk 0:01:27.7]} 30... Kg6 {[%clk 0:01:11.4]} 31. Qb3 {[%clk 0:01:21.7]} 31...
Re7 {[%clk 0:01:08.6]} 32. Kf2 {[%clk 0:01:15]} 32... Be4 {[%clk 0:01:08.8]} 33.
Kg3 {[%clk 0:01:12.1]} 33... Nf5+ {[%clk 0:01:06.2]} 34. Kf4 {[%clk 0:01:06]}
34... Bxg2 {[%clk 0:00:53.4]} 35. Qg8+ {[%clk 0:00:57.5]} 35... Ng7 {[%clk
0:00:50.4]} 36. Qb8 {[%clk 0:00:56.1]} 36... Bf3 {[%clk 0:00:44.1]} 37. Qd6+
{[%clk 0:00:45.4]} 37... Re6 {[%clk 0:00:43.4]} 38. Qd3+ {[%clk 0:00:43.8]}
38... Kf7 {[%clk 0:00:40.2]} 39. Qb3 {[%clk 0:00:37.7]} 39... Kg6 {[%clk
0:00:31.1]} 40. Qd3+ {[%clk 0:00:28.8]} 40... Re4+ {[%clk 0:00:29.2]} 41. Kg3
{[%clk 0:00:29.3]} 41... Nf5+ {[%clk 0:00:29.5]} 42. Kf2 {[%clk 0:00:29.5]}
42... Nxe3 {[%clk 0:00:27.2]} 43. Qd6+ {[%clk 0:00:27.7]} 43... Kg5 {[%clk
0:00:26.2]} 44. Qd8+ {[%clk 0:00:26.2]} 44... Kg6 {[%clk 0:00:25.2]} 45. Qg8+
{[%clk 0:00:23.8]} 45... Kf6 {[%clk 0:00:24.7]} 46. Qf8+ {[%clk 0:00:22.9]}
46... Ke5 {[%clk 0:00:24.9]} 47. Qe7+ {[%clk 0:00:22.3]} 47... Kd4 {[%clk
0:00:24.9]} 48. Qxb7 {[%clk 0:00:21.6]} 48... Nd5 {[%clk 0:00:22.7]} 49. Qxa7+
{[%clk 0:00:21.2]} 49... Kd3 {[%clk 0:00:20.6]} 50. Qa3+ {[%clk 0:00:19.7]}
50... Kd4 {[%clk 0:00:19.7]} 51. Qa7+ {[%clk 0:00:19.1]} 51... Ke5 {[%clk
0:00:18]} 52. Qg7+ {[%clk 0:00:18.6]} 52... Kf5 {[%clk 0:00:16.8]} 53. Qh7+
{[%clk 0:00:17.3]} 53... Ke5 {[%clk 0:00:16]} 54. Qh8+ {[%clk 0:00:17.3]} 54...
Nf6 {[%clk 0:00:15.7]} 55. Qb8+ {[%clk 0:00:17.7]} 55... Kf5 {[%clk 0:00:15.3]}
56. Qc8+ {[%clk 0:00:17]} 56... Kg6 {[%clk 0:00:14.9]} 57. Qc2 {[%clk
0:00:16.5]} 57... Kg5 {[%clk 0:00:14]} 58. Qd2+ {[%clk 0:00:15.9]} 58... Kf5
{[%clk 0:00:14.2]} 59. Qa5+ {[%clk 0:00:15.5]} 59... Re5 {[%clk 0:00:13.8]} 60.
Qa6 {[%clk 0:00:14.5]} 60... Re2+ {[%clk 0:00:13.6]} 61. Qxe2 {[%clk 0:00:13.1]}
61... Bxe2 {[%clk 0:00:12.8]} 62. Kxe2 {[%clk 0:00:14]} 62... Kf4 {[%clk
0:00:08.8]} 63. Kf2 {[%clk 0:00:12.4]} 63... Ne4+ {[%clk 0:00:08.9]} 64. Kg2
{[%clk 0:00:12.8]} 64... Nd2 {[%clk 0:00:08.5]} 65. b4 {[%clk 0:00:10.1]} 65...
Nc4 {[%clk 0:00:07.3]} 66. a4 {[%clk 0:00:10.2]} 66... Ke5 {[%clk 0:00:05.6]}
67. Kg3 {[%clk 0:00:08.7]} 67... Kd4 {[%clk 0:00:04.6]} 68. Kxg4 {[%clk
0:00:08.5]} 68... Kc3 {[%clk 0:00:05]} 69. b5 {[%clk 0:00:04.8]} 69... Kb4
{[%clk 0:00:04.9]} 70. h4 {[%clk 0:00:04.5]} 70... Kxa4 {[%clk 0:00:05.3]} 71.
b6 {[%clk 0:00:04.8]} 71... Nxb6 {[%clk 0:00:04.9]} 72. Kf5 {[%clk 0:00:03.4]}
72... Nd7 {[%clk 0:00:05.1]} 73. Kg6 {[%clk 0:00:02.1]} 73... Ne5+ {[%clk
0:00:05]} 74. Kf6 {[%clk 0:00:02.4]} 74... Ng4+ {[%clk 0:00:04]} 75. Kg5 {[%clk
0:00:03]} 75... Ne5 {[%clk 0:00:04.1]} 76. h5 {[%clk 0:00:03.9]} 76... Kb5
{[%clk 0:00:02.7]} 77. Kf6 {[%clk 0:00:04.8]} 77... Ng4+ {[%clk 0:00:02.7]} 78.
Kf5 {[%clk 0:00:05.2]} 78... Nh6+ {[%clk 0:00:03]} 79. Kg6 {[%clk 0:00:05.7]}
79... Ng4 {[%clk 0:00:03.3]} 80. Kg7 {[%clk 0:00:05.1]} 80... Kc5 {[%clk
0:00:02.8]} 81. Kg6 {[%clk 0:00:06]} 81... Kd5 {[%clk 0:00:03]} 82. Kg5 {[%clk
0:00:06.9]} 82... Ne5 {[%clk 0:00:02.9]} 83. h6 {[%clk 0:00:06.9]} 83... Nf7+
{[%clk 0:00:02.7]} 84. Kg6 {[%clk 0:00:07.5]} 84... Nxh6 {[%clk 0:00:03.6]}
1/2-1/2

[Event "Early-Titled-Tuesday-Blitz-March-05-2024"]
[Site "Chess.com"]
[Date "2024.03.05"]
[Round "4"]
[White "sotochess"]
[Black "Sharafiev_Azat"]
[Result "0-1"]
[WhiteElo "2625"]
[BlackElo "2466"]
[TimeControl "180+1"]
[EndTime "8:44:04 PST"]
[Termination "Sharafiev_Azat won on time"]

1. e4 {[%clk 0:03:00.1]} 1... c5 {[%clk 0:02:59.6]} 2. Nf3 {[%clk 0:02:50]} 2...
d6 {[%clk 0:03:00]} 3. d4 {[%clk 0:02:49.8]} 3... cxd4 {[%clk 0:03:00.9]} 4.
Nxd4 {[%clk 0:02:50.7]} 4... Nf6 {[%clk 0:03:01.2]} 5. f3 {[%clk 0:02:50.4]}
5... Nc6 {[%clk 0:02:57.7]} 6. c4 {[%clk 0:02:49.9]} 6... Nxd4 {[%clk 0:02:58]}
7. Qxd4 {[%clk 0:02:49.8]} 7... g6 {[%clk 0:02:58.7]} 8. Be3 {[%clk 0:02:46.9]}
8... Bg7 {[%clk 0:02:59.2]} 9. Nc3 {[%clk 0:02:46.3]} 9... O-O {[%clk
0:02:58.2]} 10. Qd2 {[%clk 0:02:46.1]} 10... Be6 {[%clk 0:02:58.3]} 11. Be2
{[%clk 0:02:45.8]} 11... a5 {[%clk 0:02:58.9]} 12. O-O {[%clk 0:02:45.1]} 12...
a4 {[%clk 0:02:59.5]} 13. Nb5 {[%clk 0:02:35.7]} 13... Qa5 {[%clk 0:02:36]} 14.
Qxa5 {[%clk 0:01:59.8]} 14... Rxa5 {[%clk 0:02:36.5]} 15. Rac1 {[%clk
0:02:00.1]} 15... Nd7 {[%clk 0:02:33.9]} 16. Rc2 {[%clk 0:01:52.9]} 16... Rc8
{[%clk 0:02:31.9]} 17. Rfc1 {[%clk 0:01:47.4]} 17... Ne5 {[%clk 0:02:16.2]} 18.
Nd4 {[%clk 0:01:15.9]} 18... Bd7 {[%clk 0:02:02.6]} 19. h3 {[%clk 0:01:14.7]}
19... h5 {[%clk 0:01:55.2]} 20. Kf2 {[%clk 0:01:13.6]} 20... Kh7 {[%clk
0:01:54.3]} 21. f4 {[%clk 0:01:07.1]} 21... Nc6 {[%clk 0:01:54.4]} 22. Nf3
{[%clk 0:01:03.2]} 22... Nb4 {[%clk 0:01:52.9]} 23. Bd2 {[%clk 0:00:58]} 23...
Nxc2 {[%clk 0:01:27.6]} 24. Bxa5 {[%clk 0:00:50.7]} 24... Nd4 {[%clk 0:01:28.2]}
25. Ng5+ {[%clk 0:00:49.2]} 25... Kg8 {[%clk 0:01:28]} 26. Bf1 {[%clk
0:00:44.1]} 26... Nc6 {[%clk 0:01:05.7]} 27. Bc3 {[%clk 0:00:43.7]} 27... Bxc3
{[%clk 0:01:05.9]} 28. Rxc3 {[%clk 0:00:43.6]} 28... Nb4 {[%clk 0:01:06.5]} 29.
a3 {[%clk 0:00:41]} 29... Na6 {[%clk 0:01:06.5]} 30. Bd3 {[%clk 0:00:40.1]}
30... f6 {[%clk 0:01:06]} 31. Nf3 {[%clk 0:00:40]} 31... Kf7 {[%clk 0:01:04.8]}
32. Ke3 {[%clk 0:00:37.8]} 32... Nc5 {[%clk 0:01:05.2]} 33. Bc2 {[%clk
0:00:37.7]} 33... e5 {[%clk 0:01:04.9]} 34. f5 {[%clk 0:00:31.6]} 34... g5
{[%clk 0:01:01.6]} 35. Ne1 {[%clk 0:00:31]} 35... Bc6 {[%clk 0:01:00.7]} 36. Nd3
{[%clk 0:00:29.5]} 36... Nxe4 {[%clk 0:01:00.1]} 37. Nxe5+ {[%clk 0:00:29.5]}
37... dxe5 {[%clk 0:00:53.1]} 38. Bxe4 {[%clk 0:00:29.6]} 38... Bxe4 {[%clk
0:00:51.9]} 39. Kxe4 {[%clk 0:00:30.5]} 39... Rd8 {[%clk 0:00:52.5]} 40. Rd3
{[%clk 0:00:30.6]} 40... Rxd3 {[%clk 0:00:52.5]} 41. Kxd3 {[%clk 0:00:30.8]}
41... b6 {[%clk 0:00:43.3]} 42. Ke4 {[%clk 0:00:30.3]} 42... h4 {[%clk
0:00:40.6]} 43. Kd5 {[%clk 0:00:28.8]} 43... Ke7 {[%clk 0:00:41.2]} 44. c5
{[%clk 0:00:28.8]} 44... bxc5 {[%clk 0:00:40.5]} 45. Kxc5 {[%clk 0:00:29.7]}
45... Kd7 {[%clk 0:00:41.1]} 46. Kd5 {[%clk 0:00:29.6]} 46... Kc7 {[%clk
0:00:40.7]} 47. Kc5 {[%clk 0:00:25.7]} 47... Kc8 {[%clk 0:00:38.8]} 48. Kc4
{[%clk 0:00:22.5]} 48... Kb7 {[%clk 0:00:37.3]} 49. Kd5 {[%clk 0:00:22.2]} 49...
Kb6 {[%clk 0:00:36.2]} 50. Ke6 {[%clk 0:00:20.9]} 50... e4 {[%clk 0:00:36.2]}
51. Kxf6 {[%clk 0:00:21.6]} 51... e3 {[%clk 0:00:36.9]} 52. Kg7 {[%clk
0:00:21.9]} 52... e2 {[%clk 0:00:37.1]} 53. f6 {[%clk 0:00:22.8]} 53... e1=Q
{[%clk 0:00:37.5]} 54. f7 {[%clk 0:00:23.7]} 54... Qe7 {[%clk 0:00:29.7]} 55.
Kg8 {[%clk 0:00:23.2]} 55... Qe6 {[%clk 0:00:28.8]} 56. Kg7 {[%clk 0:00:23.2]}
56... Qe5+ {[%clk 0:00:26.1]} 57. Kg8 {[%clk 0:00:23]} 57... Qd5 {[%clk
0:00:26.2]} 58. Kg7 {[%clk 0:00:23]} 58... Qd4+ {[%clk 0:00:25.9]} 59. Kg8
{[%clk 0:00:22.5]} 59... Qc4 {[%clk 0:00:24.7]} 60. Kg7 {[%clk 0:00:21.6]} 60...
Qc7 {[%clk 0:00:20.6]} 61. Kg8 {[%clk 0:00:21.2]} 61... Qc4 {[%clk 0:00:19.3]}
62. Kg7 {[%clk 0:00:20.8]} 62... Qd4+ {[%clk 0:00:19.7]} 63. Kg8 {[%clk
0:00:20.5]} 63... Qd5 {[%clk 0:00:15.7]} 64. Kg7 {[%clk 0:00:20.2]} 64... Qxg2
{[%clk 0:00:08.8]} 65. f8=Q {[%clk 0:00:20.1]} 65... Qxh3 {[%clk 0:00:09.1]} 66.
Qb4+ {[%clk 0:00:19.6]} 66... Kc7 {[%clk 0:00:06.6]} 67. Qc5+ {[%clk 0:00:16.3]}
67... Kd8 {[%clk 0:00:07.1]} 68. Qxg5+ {[%clk 0:00:16.4]} 68... Kd7 {[%clk
0:00:07]} 69. Qd5+ {[%clk 0:00:16.2]} 69... Kc7 {[%clk 0:00:07.2]} 70. Qc5+
{[%clk 0:00:16.4]} 70... Kd7 {[%clk 0:00:06.3]} 71. Qd5+ {[%clk 0:00:16.4]}
71... Kc7 {[%clk 0:00:06.8]} 72. Qc4+ {[%clk 0:00:16.5]} 72... Kd7 {[%clk
0:00:07.4]} 73. Qxa4+ {[%clk 0:00:16.6]} 73... Ke6 {[%clk 0:00:08]} 74. Qe4+
{[%clk 0:00:16.8]} 74... Kd6 {[%clk 0:00:08.3]} 75. Qg6+ {[%clk 0:00:16.1]}
75... Kd7 {[%clk 0:00:08.3]} 76. Qf7+ {[%clk 0:00:16.2]} 76... Kc8 {[%clk
0:00:08.8]} 77. Qc4+ {[%clk 0:00:16]} 77... Kb7 {[%clk 0:00:09]} 78. Qb5+ {[%clk
0:00:15.6]} 78... Ka7 {[%clk 0:00:09.4]} 79. Qa5+ {[%clk 0:00:15.6]} 79... Kb7
{[%clk 0:00:09.9]} 80. Qb5+ {[%clk 0:00:16.1]} 80... Kc7 {[%clk 0:00:10.5]} 81.
Qc5+ {[%clk 0:00:16.5]} 81... Kd8 {[%clk 0:00:11.1]} 82. Qd4+ {[%clk 0:00:16.8]}
82... Qd7+ {[%clk 0:00:10.7]} 83. Qxd7+ {[%clk 0:00:16.5]} 83... Kxd7 {[%clk
0:00:11.6]} 0-1